fUSD/lending_fUSD_20250906
["ID","MTS","AMOUNT","RATE_DAILY","PERIOD"]
[383808792,1757123485856,-456.2,0.00041095,10]
[383808793,1757123485866,-457.04,0.00041095,10]
[383808794,1757123485877,-430.5,0.00041095,10]
[383808795,1757123485886,-405.8,0.00041095,10]
[383808796,1757123485896,-1339.72,0.00041095,5]
[383808797,1757123485907,-433.31,0.00041095,10]
[383808798,1757123485916,-400.0,0.00041095,10]
[383808799,1757123485926,-438.35,0.00041095,10]
[383808800,1757123485937,-802.56,0.00041095,120]
[383808801,1757123485947,-406.79,0.00041095,120]
[383808802,1757123485956,-436.69,0.00041095,10]
[383808803,1757123485966,-853.32,0.00041095,10]
[383808804,1757123485975,-428.77,0.00041095,10]
[383808805,1757123485984,-594.59,0.00041095,120]
[383808806,1757123485993,-425.97,0.00041095,10]
[383808807,1757123486003,-465.6,0.00041095,10]
[383808808,1757123486012,-400.0,0.00041095,10]
[383808809,1757123486021,-481.71,0.00041095,120]
[383808810,1757123486030,-412.53,0.00041095,120]
[383808811,1757123486039,-470.39,0.00041095,14]
[383808812,1757123486048,-430.41,0.00041095,10]
[383808813,1757123486057,-775.57,0.00041095,120]
[383808814,1757123486066,-2894.96,0.00041095,120]
[383808815,1757123486075,-400.0,0.00041095,120]
[383808816,1757123486087,-518.34150358,0.00041095,120]
[383808817,1757123486097,-746.0,0.00041096,2]
[383808818,1757123486110,-163.62,0.00041096,14]
[383808819,1757123486120,-461.21,0.00041369,120]
[383808820,1757123486130,-456.2,0.00041369,120]
[383808821,1757123486139,-457.04,0.00041369,120]
[383808822,1757123486150,-430.5,0.00041369,120]
[383808823,1757123486160,-405.8,0.00041369,120]
[383808824,1757123486171,-1339.72,0.00041369,5]
[383808825,1757123486181,-433.31,0.00041369,120]
[383808826,1757123486191,-400.0,0.00041369,120]
[383808827,1757123486200,-438.35,0.00041369,120]
[383808828,1757123486209,-802.56,0.00041369,120]
[383808829,1757123486219,-406.79,0.00041369,120]
[383808830,1757123486228,-436.69,0.00041369,120]
[383808831,1757123486237,-853.32,0.00041369,120]
[383808832,1757123486246,-428.77,0.00041369,120]
[383808833,1757123486256,-594.59,0.00041369,120]
[383808834,1757123486267,-425.97,0.00041369,120]
[383808835,1757123486276,-465.6,0.00041369,120]
[383808836,1757123486286,-400.0,0.00041369,120]
[383808837,1757123486295,-481.71,0.00041369,120]
[383808838,1757123486304,-412.53,0.00041369,120]
[383808839,1757123486421,-470.39,0.00041369,14]
[383808840,1757123486444,-430.41,0.00041369,120]
[383808841,1757123486453,-775.57,0.00041369,120]
[383808842,1757123486464,-2894.96,0.00041369,120]
[383808843,1757123486474,-285.80336686,0.00041369,120]
[383808844,1757123486483,-746.0,0.0004137,2]
[383808845,1757123486493,-500.0,0.00041627,30]
[383808846,1757123486503,-461.21,0.00041643,120]
[383808847,1757123486512,-456.2,0.00041643,120]
[383808848,1757123486521,-457.04,0.00041643,120]
[383808849,1757123486531,-430.5,0.00041643,120]
[383808850,1757123486541,-405.8,0.00041643,120]
[383808851,1757123486550,-1339.72,0.00041643,5]
[383808852,1757123486560,-433.31,0.00041643,120]
[383808853,1757123486569,-400.0,0.00041643,120]
[383808854,1757123486579,-438.35,0.00041643,120]
[383808855,1757123486588,-802.56,0.00041643,120]
[383808856,1757123486598,-406.79,0.00041643,120]
[383808857,1757123486608,-436.69,0.00041643,120]
[383808858,1757123486618,-853.32,0.00041643,120]
[383808859,1757123486627,-428.77,0.00041643,120]
[383808860,1757123486637,-594.59,0.00041643,120]
[383808861,1757123486646,-425.97,0.00041643,120]
[383808862,1757123486655,-465.6,0.00041643,120]
[383808863,1757123486664,-400.0,0.00041643,120]
[383808864,1757123486673,-481.71,0.00041643,120]
[383808865,1757123486682,-412.53,0.00041643,120]
[383808866,1757123486691,-470.39,0.00041643,14]
[383808867,1757123486700,-430.41,0.00041643,120]
[383808868,1757123486710,-775.57,0.00041643,120]
[383808869,1757123486719,-2894.96,0.00041643,120]
[383808870,1757123486728,-746.0,0.00041644,2]
[383808871,1757123486737,-500.0,0.00041657,30]
[383808872,1757123486746,-461.411581,0.00041917,120]
[383808873,1757123486755,-456.2,0.00041917,120]
[383808874,1757123486765,-457.04,0.00041917,120]
[383808875,1757123486774,-430.5,0.00041917,120]
[383808876,1757123486783,-405.8,0.00041917,120]
[383808877,1757123486793,-1339.95,0.00041917,5]
[383808878,1757123486802,-433.31,0.00041917,120]
[383808879,1757123486811,-400.0,0.00041917,120]
[383808880,1757123486820,-438.35,0.00041917,120]
[383808881,1757123486829,-802.63877932,0.00041917,120]
[383808882,1757123486839,-406.89756414,0.00041917,120]
[383808883,1757123486848,-436.69,0.00041917,120]
[383808884,1757123486857,-853.32,0.00041917,120]
[383808885,1757123486867,-428.77,0.00041917,120]
[383808886,1757123486876,-594.76470583,0.00041917,120]
[383808887,1757123486885,-425.97,0.00041917,120]
[383808888,1757123486896,-465.6,0.00041917,120]
[383808889,1757123486906,-337.92854472,0.00041917,120]
[383808890,1757123486915,-481.91583616,0.00041917,120]
[383808891,1757123486924,-412.75911153,0.00041917,120]
[383808892,1757123486934,-470.40902414,0.00041917,14]
[383808893,1757123486943,-430.41,0.00041917,120]
[383808894,1757123486952,-775.78734392,0.00041917,120]
[383808895,1757123486962,-2895.07638426,0.00041917,120]
[383808896,1757123486971,-746.0,0.00041918,2]
[383808897,1757123486981,-500.0,0.00041998,30]
[383808898,1757123486991,-448.84,0.00042,14]
[383808899,1757123487001,-456.27863014,0.00042191,120]
[383808900,1757123487011,-457.24610904,0.00042191,120]
[383808901,1757123487020,-430.62985641,0.00042191,120]
[383808902,1757123487030,-405.86976103,0.00042191,120]
[383808903,1757123487039,-433.46901593,0.00042191,120]
[383808904,1757123487049,-400.0,0.00042191,120]
[383808905,1757123487059,-438.4682662,0.00042191,120]
[383808906,1757123487068,-436.80876832,0.00042191,120]
[383808907,1757123487078,-853.33713283,0.00042191,120]
[383808908,1757123487087,-428.867982,0.00042191,120]
[383808909,1757123487097,-426.20911795,0.00042191,120]
[383808910,1757123487109,-465.67670894,0.00042191,120]
[383808911,1757123487119,-430.60945846,0.00042191,120]
[383808912,1757123487129,-746.0,0.00042192,2]
[383808913,1757123487138,-524.55,0.00042299,2]
[383808914,1757123487150,-746.0,0.00042466,2]
[383808915,1757123487161,-273.69,0.00042547,14]
[383808916,1757123487171,-1723.11,0.00042707,2]
[383808917,1757123487181,-9259.98,0.00042707,2]
[383808918,1757123487192,-303.58,0.00042707,2]
[383808919,1757123487201,-40144.78,0.00042707,30]
[383808920,1757123487211,-150.99,0.00042707,2]
[383808921,1757123487221,-9999.99,0.00042707,2]
[383808922,1757123487230,-151.29,0.00042707,120]
[383808923,1757123487240,-1155.31,0.00042707,2]
[383808924,1757123487249,-9999.99,0.00042707,2]
[383808925,1757123487259,-499.99,0.00042707,2]
[383808926,1757123487268,-37564.02,0.00042707,2]
[383808927,1757123487278,-1854.86,0.00042707,2]
[383808928,1757123487288,-2290.35,0.00042707,2]
[383808929,1757123487298,-1436.63,0.00042707,2]
[383808930,1757123487307,-746.0,0.0004274,2]
[383808931,1757123487317,-746.0,0.00043014,2]
[383808932,1757123487326,-746.0,0.00043288,2]
[383808933,1757123487336,-198.76064918,0.00043413,120]
[383808934,1757123487346,-153.0,0.000435,120]
[383808935,1757123487355,-746.0,0.00043562,2]
[383808936,1757123487364,-212.63008182,0.00043796,2]
[383808937,1757123487374,-500.0,0.00043835,120]
[383808938,1757123487383,-500.0,0.00043835,120]
[383808939,1757123487393,-500.0,0.00043835,120]
[383808940,1757123487403,-500.0,0.00043835,120]
[383808941,1757123487412,-500.0,0.00043835,120]
[383808942,1757123487422,-500.0,0.00043835,120]
[383808943,1757123487431,-500.0,0.00043835,120]
[383808944,1757123487441,-500.0,0.00043835,120]
[383808945,1757123487451,-500.0,0.00043835,120]
[383808946,1757123487460,-288.68610328,0.00043835,120]
[383808947,1757123487470,-400.0,0.00043835,10]
[383808948,1757123487479,-400.0,0.00043835,10]
[383808949,1757123487489,-476.4633549,0.00043835,10]
[383808950,1757123487499,-746.0,0.00043836,2]
[383808951,1757123487508,-168.93,0.00043958,2]
[383808952,1757123487519,-201.01885817,0.00044007,28]
[383808953,1757123487528,-746.0,0.0004411,2]
[383808954,1757123487538,-500.0,0.00044293,30]
[383808955,1757123487547,-746.0,0.00044384,2]
[383808956,1757123487556,-500.0,0.00044409,30]
[383808957,1757123487566,-155.94,0.00044521,2]
[383808958,1757123487575,-320.12,0.000446,2]
[383808959,1757123487584,-746.0,0.00044658,2]
[383808960,1757123487594,-500.0,0.000447,2]
[383808961,1757123487603,-746.0,0.00044932,2]
[383808962,1757123487612,-2271.3,0.00045,120]
[383808963,1757123487622,-1362.78,0.00045,120]
[383808964,1757123487631,-500.0,0.00045086,30]
[383808965,1757123487641,-746.0,0.00045206,2]
[383808966,1757123487650,-500.0,0.00045315,2]
[383808967,1757123487659,-1546.41244931,0.00045379,15]
[383808968,1757123487668,-6576.34236893,0.00045379,15]
[383808969,1757123487678,-746.0,0.0004548,2]
[383808970,1757123487687,-746.0,0.00045754,2]
[383808971,1757123487696,-157.21,0.000458,120]
[383808972,1757123487706,-165.9,0.00045812,30]
[383808973,1757123487716,-802.0,0.00045812,30]
[383808974,1757123487726,-481.01,0.00045812,30]
[383808975,1757123487735,-802.0,0.00045812,30]
[383808976,1757123487745,-448.86,0.00045812,30]
[383808977,1757123487754,-541.44,0.00045812,30]
[383808978,1757123487764,-541.44,0.00045812,30]
[383808979,1757123487773,-205.11,0.00045812,30]
[383808980,1757123487783,-2414.69886968,0.0004599,120]
[383808981,1757123487793,-746.0,0.00046028,2]
[383808982,1757123487802,-746.0,0.00046301,2]
[383808983,1757123487812,-500.0,0.00046367,30]
[383808984,1757123487821,-746.0,0.00046575,2]
[383808985,1757123487831,-746.0,0.00046849,2]
[383808986,1757123487842,-746.0,0.00047123,2]
[383808987,1757123487851,-764.83606105,0.00047397,2]
[383808988,1757123487862,-500.0,0.00047496,30]
[383808989,1757123487872,-150.0,0.0004776,120]
[383808990,1757123487881,-150.0,0.00048079,120]
[383808991,1757123487891,-448.84,0.000485,14]
[383808992,1757123487901,-500.0,0.00048799,2]
[383808993,1757123487910,-530.57308719,0.00048799,120]
[383808994,1757123487919,-500.0,0.00048799,120]
[383808995,1757123487929,-15745.09502048,0.000488,120]
[383808996,1757123487938,-19952.09034975,0.000488,120]
[383808997,1757123487948,-153.0,0.000491,120]
[383808998,1757123487957,-167.45,0.00049116,2]
[383808999,1757123487967,-960.37,0.000494,7]
[383809000,1757123487977,-500.0,0.0004988,120]
[383809001,1757123487986,-750.36,0.0005,120]
[383809002,1757123487996,-2271.3,0.0005,120]
[383809003,1757123488006,-500.0,0.00050066,60]
[383809004,1757123488016,-500.0,0.00050074,60]
[383809005,1757123488029,-391.0,0.000501,2]
[383809006,1757123488039,-1546.41244931,0.00050311,15]
[383809007,1757123488048,-6576.34236893,0.00050311,15]
[383809008,1757123488058,-316.0,0.00050512,2]
[383809009,1757123488067,-500.0,0.00052027,60]
[383809010,1757123488077,-228.08,0.00052479,14]
[383809011,1757123488086,-201.01885817,0.00052497,28]
[383809012,1757123488096,-280.362,0.00052774,97]
[383809013,1757123488110,-179.0,0.000532,120]
[383809014,1757123488119,-500.0,0.00053479,60]
[383809015,1757123488129,-500.0,0.00053609,60]
[383809016,1757123488139,-150.0,0.00053836,120]
[383809017,1757123488149,-530.0,0.0005388,120]
[383809018,1757123488159,-600.0,0.00054274,120]
[383809019,1757123488168,-153.0,0.000546,120]
[383809020,1757123488179,-999.0,0.00054794,120]
[383809021,1757123488188,-500.0,0.00054794,120]
[383809022,1757123488197,-500.0,0.00054794,120]
[383809023,1757123488207,-607.62176558,0.00054794,120]
[383809024,1757123488216,-366.43,0.00054794,120]
[383809025,1757123488225,-366.43,0.00054794,120]
[383809026,1757123488235,-366.43,0.00054794,120]
[383809027,1757123488244,-366.43,0.00054794,120]
[383809028,1757123488253,-366.43,0.00054794,120]
[383809029,1757123488263,-366.43,0.00054794,120]
[383809030,1757123488272,-366.43,0.00054794,120]
[383809031,1757123488281,-366.43,0.00054794,120]
[383809032,1757123488291,-366.43,0.00054794,120]
[383809033,1757123488300,-366.43,0.00054794,120]
[383809034,1757123488309,-366.43,0.00054794,120]
[383809035,1757123488318,-366.43,0.00054794,120]
[383809036,1757123488331,-366.43,0.00054794,120]
[383809037,1757123488341,-366.43,0.00054794,120]
[383809038,1757123488350,-366.43,0.00054794,120]
[383809039,1757123488360,-366.43,0.00054794,120]
[383809040,1757123488370,-366.43,0.00054794,120]
[383809041,1757123488380,-366.43,0.00054794,120]
[383809042,1757123488390,-366.43,0.00054794,120]
[383809043,1757123488399,-366.43,0.00054794,120]
[383809044,1757123488409,-366.43,0.00054794,120]
[383809045,1757123488419,-366.43,0.00054794,120]
[383809046,1757123488430,-366.43,0.00054794,120]
[383809047,1757123488441,-366.53774339,0.00054794,120]
[383809048,1757123488452,-448.84,0.000548,60]
[383809049,1757123488463,-1546.41244931,0.00055242,15]
[383809050,1757123488473,-6576.34236893,0.00055242,15]
[383809051,1757123488482,-391.34265813,0.000556,30]
[383809052,1757123488492,-237.4694658,0.00055616,120]
[383809053,1757123488501,-157.00556454,0.0005585,120]
[383809054,1757123488510,-500.0,0.00056101,120]
[383809055,1757123488519,-1598.7906237,0.00056178,2]
[383809056,1757123488528,-464.2450018,0.00056178,2]
[383809057,1757123488537,-42297.9625366,0.00056325,2]
[383809058,1757123488547,-2000.0,0.000573,90]
[383809059,1757123488556,-150.0,0.0005747,120]
[383809060,1757123488565,-150.0,0.00058171,120]
[383809061,1757123488574,-186.96842179,0.00058171,120]
[383809062,1757123488583,-161.64070028,0.00058414,30]
[383809063,1757123488592,-153.65471258,0.00058414,30]
[383809064,1757123488601,-150.0,0.00058811,120]
[383809065,1757123488611,-300.0,0.00059234,120]
[383809066,1757123488620,-157.21,0.00059493,120]
[383809067,1757123488630,-155.94,0.00059932,2]
[383809068,1757123488643,-9838.0,0.0006,120]
[383809069,1757123488653,-354.41707701,0.00060058,120]
[383809070,1757123488662,-1546.41244931,0.00060174,15]
[383809071,1757123488671,-6576.34236893,0.00060174,15]
[383809072,1757123488680,-153.0,0.000602,120]
[383809073,1757123488690,-201.01885817,0.00060988,28]
[383809074,1757123488699,-2000.0,0.00061,90]
[383809075,1757123488708,-800.3,0.000616,14]
[383809076,1757123488718,-500.0,0.00062625,120]
[383809077,1757123488727,-42297.9625366,0.00062875,3]
[383809078,1757123488737,-403.59930448,0.00063013,10]
[383809079,1757123488747,-500.0,0.00063614,120]
[383809080,1757123488756,-1500.0,0.000639,23]
[383809081,1757123488765,-5000.0,0.00064006,30]
[383809082,1757123488774,-5000.0,0.00064013,30]
[383809083,1757123488783,-2788.76,0.00064018,30]
[383809084,1757123488794,-5000.0,0.00064041,30]
[383809085,1757123488803,-1104.19593679,0.00064044,14]
[383809086,1757123488813,-1819.57,0.00064059,30]
[383809087,1757123488833,-150.0,0.00064109,120]
[383809088,1757123488842,-252.8095644,0.00064109,120]
[383809089,1757123488852,-151.26212706,0.00064109,120]
[383809090,1757123488868,-150.0,0.00064109,120]
[383809091,1757123488886,-150.0,0.00064109,120]
[383809092,1757123488895,-150.0,0.00064109,120]
[383809093,1757123488905,-150.0,0.00064109,120]
[383809094,1757123488915,-151.87846859,0.00064109,120]
[383809095,1757123488925,-150.7254357,0.00064109,120]
[383809096,1757123488935,-150.0,0.00064109,120]
[383809097,1757123488944,-152.14993032,0.00064109,120]
[383809098,1757123488954,-25000.0,0.00064115,30]
[383809099,1757123488963,-5000.0,0.00064146,30]
[383809100,1757123488973,-500.0,0.00064153,2]
[383809101,1757123488983,-484.24575347,0.00064153,120]
[383809102,1757123488992,-500.0,0.00064153,120]
[383809103,1757123489002,-25000.0,0.00064154,30]
[383809104,1757123489011,-500.0,0.0006419,120]
[383809105,1757123489022,-2320.02,0.00064239,30]
[383809106,1757123489173,-5000.0,0.00064246,30]
[383809107,1757123489182,-175.65,0.00064308,30]
[383809108,1757123489191,-2127.51,0.00064312,30]
[383809109,1757123489200,-1696.86,0.00064372,30]
[383809110,1757123489209,-150.0,0.00064383,120]
[383809111,1757123489218,-150.0,0.00064383,120]
[383809112,1757123489226,-150.0,0.00064383,120]
[383809113,1757123489235,-150.0,0.00064383,120]
[383809114,1757123489243,-150.0,0.00064383,120]
[383809115,1757123489254,-150.0,0.00064383,120]
[383809116,1757123489262,-2364.08,0.00064411,30]
[383809117,1757123489270,-2563.01,0.00064449,30]
[383809118,1757123489279,-2072.83,0.00064451,30]
[383809119,1757123489288,-5000.0,0.00064456,30]
[383809120,1757123489297,-25000.0,0.0006456,30]
[383809121,1757123489305,-150.0,0.00064657,120]
[383809122,1757123489314,-204.68946862,0.00064657,120]
[383809123,1757123489323,-207.10537167,0.00064657,120]
[383809124,1757123489331,-202.88567677,0.00064657,120]
[383809125,1757123489339,-209.54427842,0.00064657,120]
[383809126,1757123489348,-202.65700953,0.00064657,120]
[383809127,1757123489356,-5000.0,0.00064672,30]
[383809128,1757123489364,-5000.0,0.0006469,30]
[383809129,1757123489373,-1108.0,0.000647,120]
[383809130,1757123489382,-818.12,0.00064772,30]
[383809131,1757123489390,-5000.0,0.00064774,30]
[383809132,1757123489398,-672.65,0.00064787,30]
[383809133,1757123489407,-5000.0,0.00064803,30]
[383809134,1757123489415,-5000.0,0.00064806,30]
[383809135,1757123489424,-5000.0,0.00064833,30]
[383809136,1757123489432,-2563.62,0.00064873,30]
[383809137,1757123489441,-1037.59,0.00064895,30]
[383809138,1757123489449,-5000.0,0.00064904,30]
[383809139,1757123489458,-2476.33,0.00064915,30]
[383809140,1757123489467,-155.13679154,0.00064931,120]
[383809141,1757123489475,-5000.0,0.00064942,30]
[383809142,1757123489484,-18497.14,0.00064959,30]
[383809143,1757123489492,-5000.0,0.00064982,30]
[383809144,1757123489500,-5000.0,0.00064998,30]
[383809145,1757123489509,-894.2154262,0.00065,120]
[383809146,1757123489517,-5714.3,0.00065,30]
[383809147,1757123489525,-1868.89,0.00065,30]
[383809148,1757123489534,-448.84,0.000651,60]
[383809149,1757123489543,-1546.41244931,0.00065105,15]
[383809150,1757123489552,-6576.34236893,0.00065105,15]
[383809151,1757123489560,-500.0,0.00065292,120]
[383809152,1757123489569,-153.0,0.000657,120]
[383809153,1757123489577,-1316.2,0.00065753,120]
[383809154,1757123489585,-500.0,0.00066095,120]
[383809155,1757123489594,-500.0,0.00066304,120]
[383809156,1757123489602,-500.0,0.00066745,120]
[383809157,1757123489611,-1316.2,0.00067624,120]
[383809158,1757123489619,-57678.07545598,0.00068,120]
[383809159,1757123489628,-1108.02771609,0.000684,120]
[383809160,1757123489636,-179.0,0.000685,120]
[383809161,1757123489645,-448.84,0.000694,60]
[383809162,1757123489653,-150.0,0.00069424,120]
[383809163,1757123489662,-42297.9625366,0.00069425,5]
[383809164,1757123489671,-201.01885817,0.00069478,28]
[383809165,1757123489680,-1316.2,0.00069494,120]
[383809166,1757123489689,-500.0,0.00069864,120]
[383809167,1757123489697,-5714.3,0.0007,30]
[383809168,1757123489707,-1868.89,0.0007,30]
[383809169,1757123489715,-2000.0,0.0007,120]
[383809170,1757123489724,-1546.41244931,0.00070037,15]
[383809171,1757123489732,-6576.34236893,0.00070037,15]
[383809172,1757123489740,-500.0,0.00070494,120]
[383809173,1757123489749,-2000.0,0.00071,120]
[383809174,1757123489758,-153.0,0.000713,120]
[383809175,1757123489767,-1316.2,0.00071365,120]
[383809176,1757123489776,-3000.0,0.00071645,2]
[383809177,1757123489785,-280.362,0.00071849,120]
[383809178,1757123489794,-500.0,0.00072273,120]
[383809179,1757123489803,-2893.040418,0.000725,120]
[383809180,1757123489813,-500.0,0.00072563,120]
[383809181,1757123489823,-500.0,0.00072821,2]
[383809182,1757123489832,-150.0,0.00072821,120]
[383809183,1757123489842,-393.79341248,0.00072821,120]
[383809184,1757123489851,-13760.25239641,0.00072822,120]
[383809185,1757123489862,-2000.0,0.00073,120]
[383809186,1757123489871,-3128.39592043,0.00073014,2]
[383809187,1757123489881,-157.21,0.00073186,120]
[383809188,1757123489890,-837.5,0.00073235,120]
[383809189,1757123489899,-465.81,0.000737,60]
[383809190,1757123489910,-273.3011375,0.00074,120]
[383809191,1757123489919,-432.0,0.00074175,7]
[383809192,1757123489928,-170.0,0.00074264,2]
[383809193,1757123489937,-170.0,0.00074328,120]
[383809194,1757123489948,-155000.0,0.000745,120]
[383809195,1757123489957,-5000.0,0.000745,120]
[383809196,1757123489967,-151.0,0.000745,120]
[383809197,1757123489976,-209.98564,0.000745,120]
[383809198,1757123489986,-151.0,0.000745,120]
[383809199,1757123489995,-151.0,0.000745,120]
[383809200,1757123490005,-167.654445,0.000745,120]
[383809201,1757123490014,-153.997555,0.000745,120]
[383809202,1757123490025,-151.0,0.000745,120]
[383809203,1757123490035,-151.0,0.000745,120]
[383809204,1757123490045,-500.0,0.00074849,120]
[383809205,1757123490055,-435.0,0.00074878,2]
[383809206,1757123490064,-1546.41244931,0.00074968,15]
[383809207,1757123490074,-6576.34236893,0.00074968,15]
[383809208,1757123490084,-341.89,0.00075,90]
[383809209,1757123490094,-2000.0,0.00075,90]
[383809210,1757123490108,-2003.97,0.00075,90]
[383809211,1757123490117,-2000.0,0.00075,120]
[383809212,1757123490126,-254.17857569,0.00075,30]
[383809213,1757123490136,-5714.3,0.00075,30]
[383809214,1757123490152,-1868.89,0.00075,30]
[383809215,1757123490163,-500.0,0.00075029,2]
[383809216,1757123490172,-155.94,0.00075342,120]
[383809217,1757123490183,-432.0,0.0007539,30]
[383809218,1757123490194,-170.0,0.0007573,7]
[383809219,1757123490203,-431.0,0.00075732,2]
[383809220,1757123490213,-42297.9625366,0.00075975,8]
[383809221,1757123490222,-432.0,0.0007636,120]
[383809222,1757123490231,-170.0,0.00076464,2]
[383809223,1757123490240,-6000.0,0.000765,120]
[383809224,1757123490249,-151.0,0.000765,120]
[383809225,1757123490259,-151.0,0.000765,120]
[383809226,1757123490268,-151.307591,0.000765,120]
[383809227,1757123490278,-548.93789,0.000765,30]
[383809228,1757123490289,-548.93789,0.000765,30]
[383809229,1757123490303,-548.93789,0.000765,30]
[383809230,1757123490313,-548.93789,0.000765,30]
[383809231,1757123490323,-170.0,0.00076538,2]
[383809232,1757123490333,-153.0,0.000768,120]
[383809233,1757123490341,-2000.0,0.00077,120]
[383809234,1757123490350,-170.0,0.00077071,7]
[383809235,1757123490359,-186.81079677,0.00077077,2]
[383809236,1757123490369,-500.0,0.00077137,120]
[383809237,1757123490378,-170.0,0.00077418,120]
[383809238,1757123490388,-432.0,0.00077586,2]
[383809239,1757123490397,-891.3065597,0.00077691,2]
[383809240,1757123490407,-2272.44002284,0.00077691,30]
[383809241,1757123490416,-431.0,0.00077715,30]
[383809242,1757123490426,-185.39630394,0.00077773,7]
[383809243,1757123490435,-185.39630394,0.00077773,7]
[383809244,1757123490444,-5101739.9416324,0.00077783,120]
[383809245,1757123490632,-198259.0583676,0.00077783,120]
[383809246,1757123490642,-170.0,0.00077791,2]
[383809247,1757123490652,-500.0,0.00077807,2]
[383809248,1757123490662,-623.61715938,0.00077808,120]
[383809249,1757123490671,-205.0608559,0.00077808,23]
[383809250,1757123490680,-25269.7122909,0.00077808,56]
[383809251,1757123490689,-160.0,0.00077808,120]
[383809252,1757123490698,-160.0,0.00077808,120]
[383809253,1757123490707,-160.0,0.00077808,120]
[383809254,1757123490717,-160.0,0.00077808,120]
[383809255,1757123490726,-160.0,0.00077808,120]
[383809256,1757123490735,-160.0,0.00077808,120]
[383809257,1757123490744,-160.0,0.00077808,120]
[383809258,1757123490753,-160.0,0.00077808,120]
[383809259,1757123490763,-160.0,0.00077808,120]
[383809260,1757123490772,-160.0,0.00077808,120]
[383809261,1757123490781,-160.0,0.00077808,120]
[383809262,1757123490790,-160.0,0.00077808,120]
[383809263,1757123490800,-160.0,0.00077808,120]
[383809264,1757123490809,-160.0,0.00077808,120]
[383809265,1757123490818,-160.0,0.00077808,120]
[383809266,1757123490828,-176.015274,0.00077808,120]
[383809267,1757123490837,-151.961049,0.00077808,120]
[383809268,1757123490847,-151.0,0.00077808,120]
[383809269,1757123490856,-9459.0,0.00077808,120]
[383809270,1757123490865,-9459.0,0.00077808,120]
[383809271,1757123490874,-9459.0,0.00077808,120]
[383809272,1757123490884,-9459.0,0.00077808,120]
[383809273,1757123490893,-9459.0,0.00077808,120]
[383809274,1757123490902,-9459.0,0.00077808,120]
[383809275,1757123490910,-9459.0,0.00077808,120]
[383809276,1757123490919,-9459.0,0.00077808,120]
[383809277,1757123490930,-9459.0,0.00077808,120]
[383809278,1757123490940,-9459.0,0.00077808,120]
[383809279,1757123490950,-9459.0,0.00077808,120]
[383809280,1757123490961,-9459.0,0.00077808,120]
[383809281,1757123490970,-9459.0,0.00077808,120]
[383809282,1757123490980,-9459.0,0.00077808,120]
[383809283,1757123490989,-9459.0,0.00077808,120]
[383809284,1757123490999,-9459.0,0.00077808,120]
[383809285,1757123491008,-9459.0,0.00077808,120]
[383809286,1757123491018,-9459.0,0.00077808,120]
[383809287,1757123491027,-9459.0,0.00077808,120]
[383809288,1757123491036,-9459.0,0.00077808,120]
[383809289,1757123491047,-9459.0,0.00077808,120]
[383809290,1757123491056,-9459.0,0.00077808,120]
[383809291,1757123491066,-9459.0,0.00077808,120]